[Event "Turkish Cup 2022"]
[Site "Sakarya"]
[Date "2022.03.25"]
[Round "1.24"]
[White "Isilak, Enes"]
[Black "Pehlivan, Mete"]
[Result "1-0"]
[ECO "E69"]
[WhiteElo "2125"]
[BlackElo "1317"]
[Annotator "NA"]
[PlyCount "103"]
[EventDate "2022.03.25"]
[EventType "swiss"]
[EventCountry "TUR"]
[SourceTitle "playchess.com"]
[Source "ChessBase"]
[SourceQuality "1"]
[TimeControl "5400+30"]

1. d4 {[%emt 0:01:00]} Nf6 {[%emt 0:01:00]} 2. c4 {[%emt 0:00:30]} g6 {[%emt 0:00:30]} 3. g3 {[%emt 0:00:00]} Bg7 {[%emt 0:00:00]} 4. Bg2 {[%emt 0:00:00]} O-O {[%emt 0:00:00]} 5. Nc3 {[%emt 0:00:00]} c6 {[%emt 0:01:30]} 6. e4 {[%emt 0:01:00]} d6 {[%emt 0:01:30]} 7. Nf3 {[%emt 0:01:30]} a6 {[%emt 0:01:30]} 8. O-O {[%emt 0:15:30]} Nbd7 {[%emt 0:01:30]} 9. h3 {[%emt 0:10:30]} e5 {[%emt 0:00:30]} 10. Be3 {[%emt 0:07:30]} exd4 {[%emt 0:03:30]} 11. Nxd4 {[%emt 0:01:30]} Ne5 {[%emt 0:00:30]} 12. b3 {[%emt 0:02:30]} c5 {[%emt 0:01:30]} 13. Nde2 {[%emt 0:00:30]} Re8 {[%emt 0:10:30]} 14. f4 {[%emt 0:04:30]} Nc6 {[%emt 0:02:30]} 15. Qd2 {[%emt 0:01:30]} Qa5 {[%emt 0:14:30]} 16. Rac1 {[%emt 0:15:30]} Rd8 {[%emt 0:03:30]} 17. Kh2 {[%emt 0:05:30]} b5 {[%emt 0:02:30]} 18. Qe1 {[%emt 0:05:30]} Bb7 {[%emt 0:03:30]} 19. e5 {[%emt 0:09:49]} dxe5 {[%emt 0:02:30]} 20. fxe5 {[%emt 0:10:07]} Nxe5 {[%emt 0:02:30]} 21. Bxb7 {[%emt 0:01:29]} Nd3 {[%emt 0:01:30]} 22. Qd2 {[%emt 0:00:20]} Rab8 {[%emt 0:03:30]} 23. Nd5 Qxd2 24. Bxd2 {[%emt 0:04:02]} Nxc1 {[%emt 0:07:00]} 25. Bxc1 {[%emt 0:01:00]} Rxb7 {[%emt 0:00:30]} 26. Nxf6+ {[%emt 0:01:06]} Bxf6 {[%emt 0:08:30]} 27. Rxf6 {[%emt 0:00:30]} Rd1 {[%emt 0:00:30]} 28. Kg2 {[%emt 0:00:30]} bxc4 {[%emt 0:00:30]} 29. Rxa6 {[%emt 0:00:30]} cxb3 {[%emt 0:00:30]} 30. Bh6 {[%emt 0:00:30]} Rd8 {[%emt 0:00:30]} 31. axb3 {[%emt 0:00:30]} Rxb3 {[%emt 0:00:30]} 32. Rc6 {[%emt 0:00:30]} Rb2 {[%emt 0:00:30]} 33. Kf3 {[%emt 0:00:30]} Re8 {[%emt 0:00:30]} 34. Nf4 {[%emt 0:00:30]} Rb3+ {[%emt 0:00:30]} 35. Kg4 {[%emt 0:00:30]} Rc3 {[%emt 0:00:30]} 36. Rc7 {[%emt 0:00:52]} Rd8 {[%emt 0:02:30]} 37. Bg5 {[%emt 0:00:30]} h5+ {[%emt 0:01:30]} 38. Kh4 {[%emt 0:00:05]} Rd6 {[%emt 0:02:30]} 39. Be7 {[%emt 0:00:10]} Ra6 {[%emt 0:04:44]} 40. Nd5 {[%emt 0:00:42]} Rd3 {[%emt 0:02:50]} 41. Bf6 {[%emt 0:01:07]} Kh7 {[%emt 0:04:08]} 42. Rc8 {[%emt 0:00:31]} Rxf6 {[%emt 0:00:38]} 43. Nxf6+ {[%emt 0:00:02]} Kh6 {[%emt 0:00:38]} 44. Ng8+ {[%emt 0:00:30]} Kg7 {[%emt 0:00:19]} 45. Ne7 {[%emt 0:00:16]} Re3 {[%emt 0:01:43]} 46. Nd5 {[%emt 0:00:25]} Rd3 {[%emt 0:03:13]} 47. Ne7 {[%emt 0:00:51]} Re3 {[%emt 0:00:40]} 48. Re8 {[%emt 0:00:51]} Re5 {[%emt 0:02:19]} 49. g4 {[%emt 0:00:26]} hxg4 {[%emt 0:03:22]} 50. hxg4 {[%emt 0:00:21]} Kh7 {[%emt 0:00:50]} 51. g5 {[%emt 0:00:44]} c4 {[%emt 0:02:41]} 52. Kg4 {[%emt 0:00:03]} 1-0

[Event "Turkish Cup 2022"]
[Site "Sakarya"]
[Date "2022.03.25"]
[Round "1.25"]
[White "Incecinar, Abdullah Mete"]
[Black "Caputcuoglu, Zeki Berke"]
[Result "0-1"]
[ECO "C88"]
[WhiteElo "1248"]
[BlackElo "2095"]
[Annotator "NA"]
[PlyCount "66"]
[EventDate "2022.03.25"]
[EventType "swiss"]
[EventCountry "TUR"]
[SourceTitle "playchess.com"]
[Source "ChessBase"]
[SourceQuality "1"]
[TimeControl "5400+30"]

1. e4 {[%emt 0:01:00]} e5 {[%emt 0:01:00]} 2. Nf3 {[%emt 0:00:00]} Nc6 {[%emt 0:00:30]} 3. Bb5 {[%emt 0:00:00]} a6 {[%emt 0:00:30]} 4. Ba4 {[%emt 0:01:30]} Nf6 {[%emt 0:00:30]} 5. O-O {[%emt 0:01:30]} Be7 {[%emt 0:00:30]} 6. Re1 {[%emt 0:00:30]} b5 {[%emt 0:00:30]} 7. Bb3 {[%emt 0:00:30]} O-O {[%emt 0:00:30]} 8. a4 {[%emt 0:04:30]} b4 {[%emt 0:03:30]} 9. d4 {[%emt 0:36:30]} d6 {[%emt 0:00:30]} 10. d5 {[%emt 0:10:30]} Na5 {[%emt 0:00:30]} 11. Ba2 {[%emt 0:07:30]} Rb8 {[%emt 0:08:30]} 12. Bd2 {[%emt 0:07:30]} Bg4 {[%emt 0:11:30]} 13. h3 {[%emt 0:01:30]} Bh5 {[%emt 0:00:30]} 14. b3 {[%emt 0:04:30]} c6 {[%emt 0:01:30]} 15. dxc6 $19 {[%emt 0:01:30]} Nxc6 {[%emt 0:00:30]} 16. c3 {[%emt 0:00:58]} Bg6 {[%emt 0:04:30]} 17. cxb4 {[%emt 0:03:34]} Nxe4 {[%emt 0:00:30]} 18. Nc3 {[%emt 0:05:27]} Nxd2 {[%emt 0:04:30]} 19. Qxd2 {[%emt 0:00:39]} Nxb4 {[%emt 0:01:30]} 20. Bb1 {[%emt 0:04:20]} Qb6 {[%emt 0:03:30]} 21. Bxg6 {[%emt 0:00:46]} hxg6 {[%emt 0:00:30]} 22. Rab1 {[%emt 0:01:54]} Qb7 {[%emt 0:02:30]} 23. Rbd1 {[%emt 0:01:13]} Rfc8 {[%emt 0:01:30]} 24. Rc1 {[%emt 0:02:13]} Rc5 {[%emt 0:02:30]} 25. Ne2 {[%emt 0:01:38]} e4 {[%emt 0:01:30]} 26. Rxc5 {[%emt 0:00:29]} dxc5 {[%emt 0:00:30]} 27. Ne5 {[%emt 0:00:44]} Rd8 {[%emt 0:01:30]} 28. Qc1 {[%emt 0:00:43]} Nd3 {[%emt 0:00:30]} 29. Nxd3 {[%emt 0:00:31]} exd3 {[%emt 0:00:30]} 30. Qe3 {[%emt 0:00:33]} dxe2 {[%emt 0:00:30]} 31. Qxe2 {[%emt 0:00:00]} Bf6 {[%emt 0:00:00]} 32. Qc2 {[%emt 0:00:19]} Qb4 {[%emt 0:00:00]} 33. Rc1 {[%emt 0:00:18]} Rd2 {[%emt 0:00:30]} 0-1

[Event "Turkish Cup 2022"]
[Site "Sakarya"]
[Date "2022.03.25"]
[Round "1.26"]
[White "Gulden, Egemen"]
[Black "Toklu, Ahmet Kayra"]
[Result "1-0"]
[ECO "C67"]
[WhiteElo "2094"]
[BlackElo "1131"]
[Annotator "NA"]
[PlyCount "105"]
[EventDate "2022.03.25"]
[EventType "swiss"]
[EventCountry "TUR"]
[SourceTitle "playchess.com"]
[Source "ChessBase"]
[SourceQuality "1"]
[TimeControl "5400+30"]

1. e4 {[%emt 0:02:00]} e5 {[%emt 0:01:00]} 2. Nf3 {[%emt 0:03:30]} Nc6 {[%emt 0:00:30]} 3. Bb5 {[%emt 0:00:00]} Nf6 {[%emt 0:00:30]} 4. O-O {[%emt 0:00:00]} Nxe4 {[%emt 0:01:30]} 5. Qe2 {[%emt 0:05:30]} Nd6 {[%emt 0:01:30]} 6. Bxc6 {[%emt 0:04:30]} bxc6 {[%emt 0:02:30]} 7. Qxe5+ {[%emt 0:00:30]} Qe7 {[%emt 0:01:30]} 8. Qf4 {[%emt 0:04:30]} Qd8 {[%emt 0:05:30]} 9. Re1+ {[%emt 0:06:30]} Be7 {[%emt 0:01:30]} 10. Qe5 {[%emt 0:00:30]} f6 {[%emt 0:03:30]} 11. Qe2 {[%emt 0:01:30]} c5 {[%emt 0:12:30]} 12. d3 {[%emt 0:07:30]} Bb7 {[%emt 0:01:30]} 13. Be3 {[%emt 0:01:30]} Bxf3 {[%emt 0:06:30]} 14. Qxf3 {[%emt 0:01:30]} c4 {[%emt 0:01:30]} 15. Qg4 {[%emt 0:01:30]} O-O {[%emt 0:03:30]} 16. dxc4 {[%emt 0:00:00]} f5 {[%emt 0:01:30]} 17. Qf3 {[%emt 0:06:00]} Kh8 {[%emt 0:04:30]} 18. Nd2 {[%emt 0:02:30]} Bf6 $18 {[%emt 0:01:30]} 19. c3 {[%emt 0:01:30]} Rb8 {[%emt 0:04:30]} 20. Rab1 {[%emt 0:01:30]} Bg5 {[%emt 0:03:30]} 21. c5 {[%emt 0:06:30]} f4 {[%emt 0:04:30]} 22. Bd4 {[%emt 0:01:30]} Nf5 {[%emt 0:01:30]} 23. Qd5 {[%emt 0:06:30]} c6 {[%emt 0:03:30]} 24. Qe4 {[%emt 0:01:30]} Nxd4 {[%emt 0:02:30]} 25. Qxd4 {[%emt 0:01:30]} Bf6 {[%emt 0:01:30]} 26. Qc4 {[%emt 0:01:30]} d5 {[%emt 0:02:30]} 27. cxd6 {[%emt 0:07:30]} Qxd6 {[%emt 0:00:30]} 28. Nf3 {[%emt 0:05:30]} g5 {[%emt 0:02:30]} 29. h3 {[%emt 0:01:07]} h5 {[%emt 0:00:30]} 30. Rbd1 {[%emt 0:03:55]} Qc7 {[%emt 0:00:30]} 31. Qc5 {[%emt 0:00:38]} Rg8 {[%emt 0:01:30]} 32. Qf5 {[%emt 0:00:31]} Qg7 {[%emt 0:02:30]} 33. Re6 {[%emt 0:02:53]} Rbf8 {[%emt 0:01:30]} 34. Rdd6 {[%emt 0:00:14]} g4 {[%emt 0:01:30]} 35. Rxf6 {[%emt 0:00:07]} Rxf6 {[%emt 0:00:30]} 36. Rxf6 {[%emt 0:00:04]} gxf3 {[%emt 0:00:30]} 37. Qxh5+ {[%emt 0:00:30]} Qh7 {[%emt 0:00:30]} 38. Rh6 {[%emt 0:00:49]} Rxg2+ {[%emt 0:00:00]} 39. Kh1 {[%emt 0:00:13]} Qxh6 {[%emt 0:00:00]} 40. Qxh6+ {[%emt 0:00:30]} Kg8 {[%emt 0:00:30]} 41. Qxf4 {[%emt 0:00:00]} Rxf2 {[%emt 0:00:30]} 42. Qg3+ {[%emt 0:00:00]} Kh7 {[%emt 0:00:30]} 43. Qxf2 {[%emt 0:00:19]} c5 {[%emt 0:00:00]} 44. Qxf3 {[%emt 0:00:00]} c4 {[%emt 0:00:00]} 45. Qg4 {[%emt 0:00:17]} a5 {[%emt 0:00:00]} 46. b3 {[%emt 0:00:00]} cxb3 {[%emt 0:00:00]} 47. axb3 {[%emt 0:00:00]} a4 {[%emt 0:00:30]} 48. bxa4 {[%emt 0:00:23]} Kh6 {[%emt 0:00:30]} 49. a5 {[%emt 0:00:00]} Kh7 {[%emt 0:00:00]} 50. a6 {[%emt 0:00:00]} Kh6 {[%emt 0:00:00]} 51. a7 {[%emt 0:00:19]} Kh7 {[%emt 0:00:00]} 52. a8=Q {[%emt 0:00:00]} Kh6 {[%emt 0:00:00]} 53. Qh8# {[%emt 0:00:00]} 1-0

[Event "Turkish Cup 2022"]
[Site "Sakarya"]
[Date "2022.03.25"]
[Round "1.28"]
[White "Korkmaz, Necmettin"]
[Black "Cibik, Bulent"]
[Result "1-0"]
[ECO "B12"]
[WhiteElo "2076"]
[BlackElo "1473"]
[Annotator "NA"]
[PlyCount "61"]
[EventDate "2022.03.25"]
[EventType "swiss"]
[EventCountry "TUR"]
[SourceTitle "playchess.com"]
[Source "ChessBase"]
[SourceQuality "1"]
[TimeControl "5400+30"]

1. e4 {[%emt 0:01:00]} c6 {[%emt 0:01:00]} 2. d4 {[%emt 0:00:30]} d5 {[%emt 0:00:30]} 3. e5 {[%emt 0:01:30]} Bf5 {[%emt 0:01:30]} 4. h4 {[%emt 0:00:30]} h6 {[%emt 0:02:30]} 5. g4 {[%emt 0:05:30]} Bh7 {[%emt 0:03:30]} 6. e6 {[%emt 0:01:30]} fxe6 {[%emt 0:02:30]} 7. Bd3 {[%emt 0:00:30]} Be4 {[%emt 0:20:30]} 8. f3 {[%emt 0:11:30]} Bxd3 {[%emt 0:02:30]} 9. Qxd3 {[%emt 0:00:00]} Qd6 {[%emt 0:00:30]} 10. f4 {[%emt 0:03:00]} Na6 {[%emt 0:01:30]} 11. Qg6+ {[%emt 0:04:30]} Kd7 {[%emt 0:02:30]} 12. Nf3 {[%emt 0:03:30]} e5 {[%emt 0:04:30]} 13. Nxe5+ {[%emt 0:01:30]} Kc7 {[%emt 0:00:30]} 14. Qd3 {[%emt 0:17:30]} Qb4+ {[%emt 0:04:30]} 15. Nc3 {[%emt 0:03:30]} Nf6 {[%emt 0:03:30]} 16. Bd2 {[%emt 0:03:30]} Qb6 {[%emt 0:03:30]} 17. O-O-O {[%emt 0:04:30]} e6 {[%emt 0:00:30]} 18. g5 {[%emt 0:03:30]} Ne4 {[%emt 0:06:30]} 19. Nxe4 {[%emt 0:00:30]} dxe4 {[%emt 0:00:30]} 20. Qxe4 {[%emt 0:00:30]} Re8 {[%emt 0:03:30]} 21. Ng6 {[%emt 0:06:30]} Rg8 {[%emt 0:02:30]} 22. Nxf8 {[%emt 0:01:30]} Rgxf8 {[%emt 0:01:30]} 23. Qe5+ {[%emt 0:00:30]} Kc8 {[%emt 0:01:30]} 24. Qxg7 {[%emt 0:01:30]} h5 {[%emt 0:01:30]} 25. Rhe1 {[%emt 0:01:30]} Nc7 {[%emt 0:00:30]} 26. Re5 {[%emt 0:03:45]} Qxd4 {[%emt 0:05:30]} 27. Be3 {[%emt 0:08:19]} Qa4 {[%emt 0:00:30]} 28. Rd7 {[%emt 0:01:01]} Nd5 {[%emt 0:02:30]} 29. Rxb7 {[%emt 0:00:45]} c5 {[%emt 0:02:34]} 30. Rxd5 {[%emt 0:00:25]} Qc6 {[%emt 0:02:45]} 31. Rxc5 {[%emt 0:01:12]} 1-0

[Event "Turkish Cup 2022"]
[Site "Sakarya"]
[Date "2022.03.25"]
[Round "1.29"]
[White "Seker, Kutsal"]
[Black "Baltaci, Ismail Tarik"]
[Result "0-1"]
[ECO "C36"]
[WhiteElo "1339"]
[BlackElo "2033"]
[Annotator "ChessBase"]
[PlyCount "52"]
[EventDate "2022.03.25"]
[EventType "swiss"]
[EventCountry "TUR"]
[SourceTitle "playchess.com"]
[Source "ChessBase"]
[SourceQuality "1"]
[TimeControl "5400+30"]

1. e4 {[%emt 0:01:00]} e5 {[%emt 0:01:00]} 2. f4 {[%emt 0:00:30]} exf4 {[%emt 0:01:30]} 3. Nf3 {[%emt 0:00:30]} Nf6 {[%emt 0:00:00]} 4. Bc4 {[%emt 0:00:30]} d5 {[%emt 0:08:00]} 5. exd5 {[%emt 0:01:30]} Nxd5 {[%emt 0:00:30]} 6. O-O {[%emt 0:00:30]} Be6 {[%emt 0:02:30]} 7. Qe2 {[%emt 0:03:30]} Be7 {[%emt 0:00:30]} 8. d4 {[%emt 0:00:30]} O-O {[%emt 0:01:30]} 9. Bd3 {[%emt 0:00:30]} Bf6 {[%emt 0:05:30]} 10. c4 {[%emt 0:02:30]} Nb4 {[%emt 0:03:30]} 11. d5 {[%emt 0:01:30]} Nxd3 {[%emt 0:01:30]} 12. dxe6 {[%emt 0:01:30]} Nxc1 {[%emt 0:01:30]} 13. exf7+ {[%emt 0:00:30]} Rxf7 {[%emt 0:00:30]} 14. Rxc1 {[%emt 0:00:30]} Nc6 {[%emt 0:02:30]} 15. Nc3 {[%emt 0:01:30]} Nd4 {[%emt 0:06:30]} 16. Qe4 {[%emt 0:02:30]} Nxf3+ {[%emt 0:01:30]} 17. Qxf3 {[%emt 0:02:30]} c6 {[%emt 0:00:30]} 18. Rd1 {[%emt 0:02:30]} Qb6+ {[%emt 0:03:30]} 19. Kh1 {[%emt 0:04:30]} Qxb2 {[%emt 0:00:30]} 20. Ne4 {[%emt 0:00:00]} Qxa1 {[%emt 0:00:30]} 21. Rxa1 {[%emt 0:00:00]} Bxa1 {[%emt 0:00:30]} 22. h3 {[%emt 0:00:30]} Re7 {[%emt 0:03:30]} 23. Nd6 {[%emt 0:01:30]} Re1+ {[%emt 0:00:30]} 24. Kh2 {[%emt 0:00:30]} Bd4 {[%emt 0:00:30]} 25. h4 {[%emt 0:00:00]} Bg1+ {[%emt 0:00:30]} 26. Kh3 {[%emt 0:00:00]} Re3 {[%emt 0:00:00]} 0-1

[Event "Turkish Cup 2022"]
[Site "Sakarya"]
[Date "2022.03.25"]
[Round "1.30"]
[White "Yavuz, Efe Metehan"]
[Black "Gargili, Kemal"]
[Result "1-0"]
[ECO "E14"]
[WhiteElo "2054"]
[BlackElo "1348"]
[Annotator "NA"]
[PlyCount "109"]
[EventDate "2022.03.25"]
[EventType "swiss"]
[EventCountry "TUR"]
[SourceTitle "playchess.com"]
[Source "ChessBase"]
[SourceQuality "1"]
[TimeControl "5400+30"]

1. b3 {[%emt 0:01:00]} d5 {[%emt 0:01:00]} 2. Bb2 {[%emt 0:00:00]} e6 {[%emt 0:00:30]} 3. Nf3 {[%emt 0:00:00]} Nf6 {[%emt 0:01:30]} 4. e3 {[%emt 0:00:30]} Be7 {[%emt 0:01:30]} 5. c4 {[%emt 0:00:30]} O-O {[%emt 0:01:30]} 6. Be2 {[%emt 0:01:30]} b6 {[%emt 0:03:30]} 7. O-O {[%emt 0:01:30]} Bb7 {[%emt 0:01:30]} 8. Nc3 {[%emt 0:02:30]} Nbd7 {[%emt 0:05:30]} 9. d4 {[%emt 0:12:30]} c5 {[%emt 0:04:30]} 10. cxd5 {[%emt 0:06:30]} Nxd5 {[%emt 0:00:00]} 11. Nxd5 {[%emt 0:00:30]} Bxd5 {[%emt 0:00:00]} 12. Rc1 {[%emt 0:00:30]} Bf6 {[%emt 0:01:30]} 13. Ba3 {[%emt 0:02:30]} Be7 {[%emt 0:07:30]} 14. Bb2 {[%emt 0:16:30]} Bf6 {[%emt 0:13:30]} 15. Qd2 {[%emt 0:09:30]} Bb7 {[%emt 0:10:30]} 16. Rfd1 {[%emt 0:03:30]} Rc8 {[%emt 0:07:30]} 17. Ba3 {[%emt 0:07:30]} Be7 {[%emt 0:05:30]} 18. dxc5 {[%emt 0:02:30]} Nxc5 {[%emt 0:00:30]} 19. Qe1 {[%emt 0:03:30]} Qe8 {[%emt 0:00:30]} 20. Bb2 {[%emt 0:05:30]} Ne4 {[%emt 0:06:30]} 21. Nd4 {[%emt 0:01:30]} Rxc1 {[%emt 0:03:30]} 22. Rxc1 {[%emt 0:00:30]} Qb8 {[%emt 0:00:30]} 23. Nc6 {[%emt 0:00:30]} Bxc6 {[%emt 0:03:30]} 24. Rxc6 {[%emt 0:00:30]} Qb7 {[%emt 0:00:00]} 25. Rc2 {[%emt 0:01:30]} Nd6 {[%emt 0:01:00]} 26. Qa1 {[%emt 0:02:59]} Rc8 {[%emt 0:06:27]} 27. Rxc8+ {[%emt 0:02:03]} Qxc8 {[%emt 0:00:07]} 28. Bxg7 {[%emt 0:01:15]} Qc2 {[%emt 0:00:30]} 29. Qb2 {[%emt 0:01:26]} Qxb2 {[%emt 0:04:47]} 30. Bxb2 {[%emt 0:00:30]} f5 {[%emt 0:00:00]} 31. Be5 {[%emt 0:02:53]} Kf7 {[%emt 0:00:05]} 32. f3 {[%emt 0:00:52]} Ne8 {[%emt 0:00:51]} 33. Kf2 {[%emt 0:03:20]} Nf6 {[%emt 0:00:27]} 34. Bc4 {[%emt 0:01:42]} Nd7 {[%emt 0:00:31]} 35. Bg3 {[%emt 0:00:39]} Bf6 {[%emt 0:05:07]} 36. Bb5 {[%emt 0:01:07]} Ke7 {[%emt 0:01:47]} 37. Ke2 {[%emt 0:00:07]} Ne5 {[%emt 0:01:06]} 38. Be1 {[%emt 0:00:50]} a5 {[%emt 0:00:45]} 39. h3 {[%emt 0:00:16]} Nd7 {[%emt 0:00:45]} 40. g4 {[%emt 0:00:56]} h6 {[%emt 0:01:40]} 41. Bg3 {[%emt 0:01:22]} Be5 {[%emt 0:01:28]} 42. Bh4+ {[%emt 0:00:16]} Bf6 {[%emt 0:00:00]} 43. Bg3 {[%emt 0:01:02]} Be5 {[%emt 0:00:21]} 44. Bf2 {[%emt 0:00:00]} Bc7 {[%emt 0:02:01]} 45. Bh4+ {[%emt 0:00:17]} Nf6 {[%emt 0:00:00]} 46. Bc4 {[%emt 0:00:15]} Be5 {[%emt 0:00:03]} 47. f4 {[%emt 0:00:55]} Bc3 {[%emt 0:00:04]} 48. Kd3 {[%emt 0:00:32]} Bb4 {[%emt 0:00:02]} 49. Kc2 {[%emt 0:02:16]} Bc5 {[%emt 0:00:12]} 50. g5 {[%emt 0:00:23]} hxg5 {[%emt 0:00:30]} 51. fxg5 {[%emt 0:00:00]} Nh5 {[%emt 0:01:13]} 52. g6+ {[%emt 0:00:08]} Kd6 {[%emt 0:00:19]} 53. Bg5 {[%emt 0:01:21]} f4 {[%emt 0:02:16]} 54. Bxf4+ {[%emt 0:01:07]} Nxf4 {[%emt 0:00:28]} 55. g7 1-0

[Event "Turkish Cup 2022"]
[Site "Sakarya"]
[Date "2022.03.25"]
[Round "1.31"]
[White "Erten, Batuhan"]
[Black "Gulsoy, Mustafa Alpago"]
[Result "0-1"]
[ECO "B08"]
[WhiteElo "1074"]
[BlackElo "2023"]
[Annotator "NA"]
[PlyCount "74"]
[EventDate "2022.03.25"]
[EventType "swiss"]
[EventCountry "TUR"]
[SourceTitle "playchess.com"]
[Source "ChessBase"]
[SourceQuality "1"]
[TimeControl "5400+30"]

1. e4 {[%emt 0:01:00]} g6 {[%emt 0:01:00]} 2. d4 {[%emt 0:00:30]} Bg7 {[%emt 0:00:00]} 3. Nf3 {[%emt 0:00:30]} d6 {[%emt 0:00:00]} 4. Nc3 {[%emt 0:01:30]} c6 {[%emt 0:00:30]} 5. a4 {[%emt 0:00:30]} Nf6 {[%emt 0:02:30]} 6. Be2 {[%emt 0:00:30]} O-O {[%emt 0:00:30]} 7. O-O {[%emt 0:00:30]} Qc7 {[%emt 0:03:30]} 8. Be3 {[%emt 0:00:30]} Nbd7 {[%emt 0:00:30]} 9. h3 {[%emt 0:00:30]} e5 {[%emt 0:02:30]} 10. Qd2 {[%emt 0:05:30]} Re8 {[%emt 0:00:30]} 11. dxe5 {[%emt 0:01:30]} dxe5 {[%emt 0:04:30]} 12. Rfd1 {[%emt 0:00:30]} Nh5 {[%emt 0:01:30]} 13. Bc4 {[%emt 0:01:30]} Nf8 {[%emt 0:13:30]} 14. Ng5 {[%emt 0:11:30]} Ne6 {[%emt 0:00:30]} 15. Qd6 {[%emt 0:02:30]} Qxd6 {[%emt 0:02:30]} 16. Rxd6 {[%emt 0:01:30]} Bf8 {[%emt 0:01:30]} 17. Rd2 {[%emt 0:02:30]} Nhf4 {[%emt 0:04:30]} 18. Bxf4 {[%emt 0:02:30]} exf4 {[%emt 0:05:30]} 19. Nf3 {[%emt 0:00:30]} Bb4 {[%emt 0:06:30]} 20. Ne5 {[%emt 0:05:30]} g5 {[%emt 0:05:30]} 21. Rd3 {[%emt 0:05:30]} Kg7 {[%emt 0:02:30]} 22. Na2 {[%emt 0:06:30]} Bf8 {[%emt 0:01:30]} 23. Rd2 {[%emt 0:02:30]} Nc5 {[%emt 0:03:30]} 24. Nxf7 {[%emt 0:01:30]} Rxe4 {[%emt 0:00:30]} 25. b3 {[%emt 0:01:30]} Rxc4 {[%emt 0:00:30]} 26. bxc4 {[%emt 0:00:30]} Kxf7 {[%emt 0:00:30]} 27. Nc1 {[%emt 0:02:30]} Bf5 {[%emt 0:01:30]} 28. Nb3 {[%emt 0:00:30]} Nxb3 {[%emt 0:00:30]} 29. cxb3 {[%emt 0:00:30]} Bb4 {[%emt 0:00:00]} 30. Re2 {[%emt 0:00:30]} Rd8 {[%emt 0:00:00]} 31. Rc1 {[%emt 0:03:30]} Rd3 {[%emt 0:01:30]} 32. Rb1 {[%emt 0:05:30]} Rxh3 {[%emt 0:01:30]} 33. gxh3 {[%emt 0:00:30]} Bxb1 {[%emt 0:00:00]} 34. Re5 {[%emt 0:00:00]} h6 {[%emt 0:00:00]} 35. h4 {[%emt 0:00:00]} Bc3 {[%emt 0:00:30]} 36. Rc5 {[%emt 0:01:30]} Be4 {[%emt 0:00:30]} 37. hxg5 {[%emt 0:01:30]} b6 {[%emt 0:00:00]} 0-1

[Event "Turkish Cup 2022"]
[Site "Sakarya"]
[Date "2022.03.25"]
[Round "1.33"]
[White "Ozmen, Sevket Mert"]
[Black "Koc, Ilkay"]
[Result "0-1"]
[ECO "B01"]
[WhiteElo "1308"]
[BlackElo "1995"]
[Annotator "NA"]
[PlyCount "73"]
[EventDate "2022.03.25"]
[EventType "swiss"]
[EventCountry "TUR"]
[SourceTitle "playchess.com"]
[Source "ChessBase"]
[SourceQuality "1"]
[TimeControl "5400+30"]

1. e4 {[%emt 0:01:00]} d5 {[%emt 0:01:00]} 2. exd5 {[%emt 0:00:30]} Nf6 {[%emt 0:00:00]} 3. d4 {[%emt 0:00:00]} Nxd5 {[%emt 0:00:00]} 4. Nf3 {[%emt 0:02:00]} Bf5 {[%emt 0:00:00]} 5. c3 {[%emt 0:03:30]} e6 {[%emt 0:00:00]} 6. Bg5 {[%emt 0:00:30]} Be7 {[%emt 0:00:30]} 7. Bxe7 {[%emt 0:00:30]} Qxe7 {[%emt 0:02:30]} 8. Bd3 {[%emt 0:02:30]} Nf4 {[%emt 0:03:30]} 9. Bxf5 {[%emt 0:08:30]} exf5+ {[%emt 0:01:30]} 10. Kf1 {[%emt 0:01:30]} O-O {[%emt 0:00:30]} 11. g3 {[%emt 0:01:30]} Nd5 {[%emt 0:03:30]} 12. Kg2 {[%emt 0:01:30]} Nc6 {[%emt 0:02:30]} 13. Re1 {[%emt 0:00:30]} Qd7 {[%emt 0:04:30]} 14. Nbd2 {[%emt 0:04:30]} Nf6 {[%emt 0:01:30]} 15. Qc2 {[%emt 0:02:30]} g6 {[%emt 0:01:30]} 16. Re2 {[%emt 0:06:30]} Rfe8 {[%emt 0:05:30]} 17. Rae1 {[%emt 0:01:30]} Kg7 {[%emt 0:00:30]} 18. Ne5 {[%emt 0:08:30]} Qd5+ {[%emt 0:03:30]} 19. f3 {[%emt 0:02:30]} Qxa2 {[%emt 0:04:30]} 20. Nxc6 {[%emt 0:01:30]} Rxe2+ {[%emt 0:03:30]} 21. Rxe2 {[%emt 0:00:00]} Qa6 {[%emt 0:00:30]} 22. c4 {[%emt 0:08:00]} Qxc6 {[%emt 0:00:30]} 23. Qc3 {[%emt 0:02:30]} Re8 {[%emt 0:00:30]} 24. Rxe8 {[%emt 0:00:30]} Qxe8 {[%emt 0:01:30]} 25. Kf2 {[%emt 0:00:30]} c6 {[%emt 0:03:30]} 26. d5 {[%emt 0:02:30]} cxd5 {[%emt 0:02:30]} 27. cxd5 {[%emt 0:00:30]} Qd7 {[%emt 0:01:30]} 28. g4 {[%emt 0:01:30]} fxg4 {[%emt 0:00:30]} 29. Ne4 {[%emt 0:00:00]} Qf5 {[%emt 0:04:30]} 30. d6 {[%emt 0:19:59]} Qxf3+ {[%emt 0:02:30]} 31. Qxf3 {[%emt 0:01:37]} gxf3 {[%emt 0:00:30]} 32. Nc5 {[%emt 0:00:00]} Kf8 {[%emt 0:00:00]} 33. Kxf3 {[%emt 0:01:11]} b6 {[%emt 0:00:00]} 34. Nd3 {[%emt 0:02:57]} Nd7 {[%emt 0:00:30]} 35. Ke4 {[%emt 0:01:02]} Nc5+ {[%emt 0:00:30]} 36. Kd5 {[%emt 0:00:03]} Ke8 {[%emt 0:00:00]} 37. Kd4 {[%emt 0:00:54]} 0-1

[Event "Turkish Cup 2022"]
[Site "Sakarya"]
[Date "2022.03.25"]
[Round "1.34"]
[White "Sahin, Handenur"]
[Black "Ozcan, Ege"]
[Result "1/2-1/2"]
[ECO "C84"]
[WhiteElo "1997"]
[BlackElo "1304"]
[Annotator "NA"]
[PlyCount "91"]
[EventDate "2022.03.25"]
[EventType "swiss"]
[EventCountry "TUR"]
[SourceTitle "playchess.com"]
[Source "ChessBase"]
[SourceQuality "1"]
[TimeControl "5400+30"]

1. e4 e5 2. Nf3 Nc6 3. Bb5 a6 4. Ba4 Nf6 5. d3 b5 6. Bb3 Be7 7. Nc3 d6 8. a3 O-O 9. O-O Bb7 10. Re1 h6 11. h3 Re8 12. Ba2 Bf8 13. Nh4 Qd7 14. Nf5 Nd4 15. Ne3 c6 16. Ne2 g6 17. Ng3 Rad8 18. c3 Ne6 19. Ng4 Nxg4 20. Qxg4 Kh7 21. h4 Nc5 22. Qf3 Kg7 23. h5 d5 24. hxg6 fxg6 25. b4 Na4 26. Bd2 Qc7 27. Qg4 Kh7 28. Re2 Bc8 29. Qf3 Bg7 30. exd5 cxd5 31. Bxd5 Rf8 32. Qe4 Nxc3 33. Bxc3 Qxc3 34. Rd1 Rf4 35. Qe3 Rxd5 36. Rc1 Qxd3 37. Rxc8 Qxe3 38. Rxe3 Rc4 39. Rxc4 bxc4 40. Rc3 Rd1+ 41. Nf1 Ra1 42. Rxc4 Rxa3 43. Ne3 Rd3 44. Rc6 Rd4 45. Nc4 h5 46. Ne3 1/2-1/2